bitfinex-derivatives/quotes_BTCF0:USTF0_20250324
["timestamp","ask_amount","ask_price","bid_price","bid_amount"]
[1742845461236,0.13454256,88095.0,88093.0,0.3608]
[1742845461433,0.13454256,88095.0,88094.0,0.3277]
[1742845461632,0.13454256,88095.0,88094.0,0.32962]
[1742845462033,0.24805766,88095.0,88094.0,0.32962]
[1742845462938,0.1135151,88095.0,88094.0,0.33062]
[1742845463335,0.01385126,88097.0,88094.0,0.33062]
[1742845463536,0.1134926,88101.0,88094.0,0.33062]
[1742845463727,0.11351446,88096.0,88094.0,0.33062]
[1742845463929,0.1103,88101.0,88094.0,0.33262]
[1742845464130,0.1111,88100.0,88094.0,0.33262]
[1742845464431,0.22461317,88100.0,88094.0,0.33262]
[1742845464633,0.1103,88099.0,88094.0,0.33262]
[1742845464835,0.22381124,88099.0,88094.0,0.33262]
[1742845465033,0.1111,88098.0,88094.0,0.33262]
[1742845465234,0.12498223,88098.0,88094.0,0.33262]
[1742845465540,0.1111,88098.0,88094.0,0.33262]
[1742845465737,0.11351124,88097.0,88094.0,0.33262]
[1742845466331,0.11351124,88097.0,88094.0,0.33162]
[1742845466537,0.11351124,88097.0,88094.0,0.33262]
[1742845467536,0.1135001,88095.0,88094.0,0.11222]
[1742845468043,0.3286001,88095.0,88094.0,0.11122]
[1742845468339,0.44211327,88095.0,88094.0,0.22172]
[1742845469741,0.44211327,88095.0,88094.0,0.11222]
[1742845469935,0.44211327,88095.0,88094.0,0.00492]
[1742845470252,0.44211327,88095.0,88094.0,0.003]
[1742845473237,0.55423327,88095.0,88094.0,0.003]
[1742845475638,0.1135105,88087.0,88086.0,0.00017031]
[1742845475836,0.4743105,88087.0,88086.0,0.00217031]
[1742845476040,0.8096105,88087.0,88086.0,0.00217031]
[1742845476447,0.92312496,88087.0,88086.0,0.00217031]
[1742845477143,0.92312496,88087.0,88086.0,0.00517031]
[1742845477850,0.92312496,88087.0,88086.0,0.00817031]
[1742845478037,0.80961446,88087.0,88062.0,0.3608]
[1742845478239,0.80961446,88087.0,88066.0,0.1077]
[1742845478240,0.1135323,88071.0,88066.0,0.1077]
[1742845478437,0.4175634,88075.0,88067.0,0.1177]
[1742845478438,0.4488327,88070.0,88067.0,0.1177]
[1742845478639,0.4488327,88070.0,88068.0,0.1077]
[1742845478953,0.11354797,88069.0,88068.0,0.1644668]
[1742845479337,0.34864797,88069.0,88068.0,0.1644668]
[1742845479537,0.46218167,88069.0,88068.0,0.1644668]
[1742845480255,0.34964797,88069.0,88068.0,0.1644668]
[1742845480438,0.36405249,88069.0,88068.0,0.1644668]
[1742845481537,0.47758619,88069.0,88068.0,0.1644668]
[1742845481740,0.47858619,88069.0,88068.0,0.1694668]
[1742845482041,0.36505249,88069.0,88068.0,0.1694668]
[1742845483144,0.47858619,88069.0,88068.0,0.1694668]
[1742845483740,0.4791862,88069.0,88068.0,0.1707868]
[1742845484340,0.3656525,88069.0,88068.0,0.1707868]
[1742845484746,0.4791862,88069.0,88068.0,0.1707868]
[1742845489357,0.3656525,88069.0,88068.0,0.1707868]
[1742845490060,0.4791862,88069.0,88068.0,0.1707868]
[1742845490253,0.3656525,88069.0,88068.0,0.1707868]
[1742845491254,0.3636525,88069.0,88068.0,0.1677868]
[1742845491850,0.3636525,88069.0,88068.0,0.1667868]
[1742845492156,0.3636525,88069.0,88068.0,0.11002]
[1742845492558,0.3636525,88069.0,88068.0,0.22292]
[1742845493258,0.3636525,88069.0,88068.0,0.33302]
[1742845499456,0.3636525,88069.0,88068.0,0.33202]
[1742845500454,0.3608,88088.0,88072.0,0.0567648]
[1742845500659,0.1099,88086.0,88077.0,0.4743233]
[1742845500954,0.1099,88086.0,88077.0,0.4758433]
[1742845501164,0.1137099,88078.0,88077.0,0.4758433]
[1742845501352,0.1137099,88078.0,88077.0,0.7057433]
[1742845502058,0.1137099,88078.0,88077.0,0.7067433]
[1742845502452,0.1137099,88078.0,88077.0,0.7087433]
[1742845503356,0.1137099,88078.0,88077.0,0.23442]
[1742845503554,0.227232,88078.0,88077.0,0.00452]
[1742845504062,0.452632,88078.0,88077.0,0.00552]
[1742845504651,0.452632,88078.0,88077.0,0.00252]
[1742845504860,0.455632,88078.0,88077.0,0.00152]
[1742845505059,0.3421099,88078.0,88077.0,0.1150433]
[1742845505456,0.3391099,88078.0,88077.0,0.1150433]
[1742845505762,0.3411099,88078.0,88077.0,0.3341433]
[1742845505961,0.454632,88078.0,88077.0,0.3341433]
[1742845506259,0.454632,88078.0,88077.0,0.22062]
[1742845506657,0.566932,88078.0,88077.0,0.22062]
[1742845507156,0.565932,88078.0,88077.0,0.22062]
[1742845507556,0.564932,88078.0,88077.0,0.22062]
[1742845507956,0.565932,88078.0,88077.0,0.22062]
[1742845508666,0.564932,88078.0,88077.0,0.22062]
[1742845508864,0.565932,88078.0,88077.0,0.22062]
[1742845509062,0.566932,88078.0,88077.0,0.22062]
[1742845512472,0.565932,88078.0,88077.0,0.22062]
[1742845512657,0.566932,88078.0,88077.0,0.22062]
[1742845513764,0.4534099,88078.0,88077.0,0.22062]
[1742845514765,0.565932,88078.0,88077.0,0.22062]
[1742845514967,0.566932,88078.0,88077.0,0.22062]
[1742845515278,0.4534099,88078.0,88077.0,0.22062]
[1742845515570,0.566932,88078.0,88077.0,0.22062]
[1742845515762,0.4534099,88078.0,88077.0,0.2191]
[1742845515964,0.4534099,88078.0,88077.0,0.22062]
[1742845516267,0.1157099,88078.0,88077.0,0.58142]
[1742845517078,0.1147099,88078.0,88077.0,0.22062]
[1742845517374,0.229232,88078.0,88077.0,0.22062]
[1742845517563,0.1157099,88078.0,88077.0,0.22062]
[1742845517963,0.1147099,88078.0,88077.0,0.22262]
[1742845518268,0.1137099,88078.0,88077.0,0.22362]
[1742845518772,0.1137099,88078.0,88077.0,0.22262]
[1742845519674,0.21479131,88078.0,88077.0,0.22262]
[1742845524273,0.1137099,88078.0,88077.0,0.22262]
[1742845524576,0.2276099,88078.0,88077.0,0.22262]
[1742845527069,0.1137099,88078.0,88077.0,0.22262]
[1742845538482,0.227232,88078.0,88077.0,0.00352]
[1742845538888,0.466232,88078.0,88077.0,0.002]
[1742845539488,0.466232,88078.0,88077.0,0.003]
[1742845540185,0.1135272,88074.0,88073.0,0.20367662]
[1742845540387,0.1135362,88067.0,88057.0,0.33848066]
[1742845540581,0.474344,88061.0,88060.0,0.00121031]
[1742845540781,0.47538401,88061.0,88060.0,0.00121031]
[1742845541379,0.5889423,88061.0,88060.0,0.00121031]
[1742845541893,0.5889423,88061.0,88060.0,0.00221031]
[1742845543289,0.7009823,88061.0,88060.0,0.00221031]
[1742845543490,0.8120823,88061.0,88060.0,0.00221031]
[1742845544087,0.8120823,88061.0,88060.0,0.00421031]
[1742845545395,0.8120823,88061.0,88060.0,0.00317031]
[1742845545890,0.8485383,88061.0,88027.0,0.01336879]
[1742845546090,0.3608,88028.0,88023.0,0.33952066]
[1742845546391,0.0567948,88026.0,88023.0,0.33952066]
[1742845546593,0.1135917,88024.0,88023.0,0.34056066]
[1742845546789,0.238,88025.0,88023.0,0.34056066]
[1742845546992,0.3515917,88024.0,88023.0,0.33848066]
[1742845547386,0.46519772,88024.0,88023.0,0.33848066]
[1742845548591,0.46619772,88024.0,88023.0,0.34248066]
[1742845549199,0.47990881,88024.0,88023.0,0.34248066]
[1742845549495,0.47990881,88024.0,88023.0,0.004]
[1742845551586,0.11460602,88024.0,88023.0,0.004]
[1742845551792,0.11520603,88024.0,88023.0,0.004]
[1742845551992,0.11520603,88024.0,88023.0,0.00504]
[1742845552295,0.11520603,88024.0,88023.0,1.71712]
[1742845554593,0.11520603,88024.0,88023.0,0.21712]
[1742845557598,0.11460602,88024.0,88023.0,0.21712]
[1742845560405,0.11564603,88024.0,88023.0,0.21712]
[1742845561001,0.11564603,88024.0,88023.0,0.21512]
[1742845563098,0.11464603,88024.0,88023.0,0.21312]
[1742845563301,0.11564603,88024.0,88023.0,0.21512]
[1742845564003,0.11564603,88024.0,88023.0,0.10304]
[1742845564610,0.22923773,88024.0,88023.0,0.10304]
[1742845564799,0.45783773,88024.0,88023.0,0.10304]
[1742845565309,0.34424603,88024.0,88023.0,0.10304]
[1742845567011,0.45783773,88024.0,88023.0,0.10304]
[1742845567826,0.34424603,88024.0,88023.0,0.10304]
[1742845572011,0.11564603,88024.0,88023.0,0.10304]
[1742845572209,0.10070929,88035.0,88023.0,0.57588]
[1742845572404,0.00153041,88032.0,88031.0,0.3608]
[1742845572611,0.10070929,88035.0,88033.0,0.05679]
[1742845572816,0.3608,88040.0,88034.0,0.46074]
[1742845573001,0.3608,88040.0,88034.0,0.56254]
[1742845574318,0.1135886,88039.0,88034.0,0.56254]
[1742845575415,0.1135886,88039.0,88034.0,0.56554]
[1742845576817,0.1135886,88039.0,88034.0,0.56254]
[1742845577017,0.1135886,88039.0,88034.0,0.56554]
[1742845579610,0.2358886,88039.0,88034.0,0.56554]
[1742845583810,0.2358886,88039.0,88035.0,0.112]
[1742845584009,0.1135886,88039.0,88035.0,0.33376]
[1742845584214,0.1135886,88039.0,88036.0,0.2299]
[1742845584419,0.1135886,88039.0,88036.0,0.34174]
[1742845585923,0.1135886,88039.0,88036.0,0.34474]
[1742845589918,0.2229886,88039.0,88037.0,0.112]
[1742845590118,0.2229886,88039.0,88037.0,0.29376]
[1742845590330,0.2229886,88039.0,88038.0,0.2288]
[1742845590625,0.2229886,88039.0,88038.0,0.33064]
[1742845592027,0.2229886,88039.0,88038.0,0.33364]
[1742845592729,0.2229886,88039.0,88038.0,0.44564]
[1742845594531,0.3365609,88039.0,88038.0,0.00484]
[1742845594719,0.056788,88037.0,88025.0,0.0567945]
[1742845594918,0.3608,88030.0,88029.0,0.0585524]
[1742845595423,0.58797776,88030.0,88029.0,0.0585524]
[1742845595929,0.81277776,88030.0,88029.0,0.0585524]
[1742845596622,0.81277776,88030.0,88029.0,0.00176]
[1742845596824,0.113589,88028.0,88027.0,0.1135875]
[1742845597123,0.69919376,88030.0,88027.0,0.1135875]
[1742845597124,0.5856,88030.0,88029.0,0.1135852]
[1742845597323,0.59852079,88030.0,88029.0,0.1153452]
[1742845597521,0.5856,88030.0,88029.0,0.1153452]
[1742845597847,0.71216625,88030.0,88029.0,0.3445452]
[1742845600324,0.33839828,88030.0,88029.0,0.3445452]
[1742845600630,0.3608,88049.0,88041.0,0.1135698]
[1742845600826,0.1169,88045.0,88043.0,0.1135672]
[1742845601023,0.1169,88045.0,88044.0,0.1135659]
[1742845601227,0.2254,88045.0,88044.0,0.2233259]
[1742845601531,0.33898279,88045.0,88044.0,0.2233259]
[1742845601725,0.33898279,88045.0,88044.0,0.3431259]
[1742845602233,0.33998279,88045.0,88044.0,0.3431259]
[1742845602618,0.1673608,88051.0,88044.0,0.3431259]
[1742845602825,0.1169,88050.0,88045.0,0.3608]
[1742845603030,0.1169,88050.0,88045.0,0.47264]
[1742845603332,0.11357828,88049.0,88046.0,0.2278]
[1742845603534,0.11357828,88049.0,88046.0,0.33964]
[1742845603726,0.1165,88048.0,88046.0,0.33964]
[1742845604530,0.1135757,88047.0,88046.0,0.33964]
[1742845604929,0.2300757,88047.0,88046.0,0.33964]
[1742845607427,0.2310757,88047.0,88046.0,0.33964]
[1742845608029,0.13494382,88065.0,88046.0,0.33964]
[1742845608232,0.14796529,88065.0,88053.0,0.3608]
[1742845608437,0.14796529,88065.0,88054.0,0.44736]
[1742845608636,0.1169,88064.0,88055.0,1.5]
[1742845608839,0.1169,88064.0,88055.0,1.75176]
[1742845609040,0.1169,88064.0,88055.0,1.97716]
[1742845609433,0.13494382,88065.0,88062.0,0.3608]
[1742845609736,0.13494382,88065.0,88063.0,0.34136]
[1742845609933,0.11356474,88064.0,88063.0,0.63316]
[1742845610335,0.13494382,88065.0,88063.0,0.63316]
[1742845610529,0.00017041,88072.0,88063.0,1.04526]
[1742845610730,0.1092,88085.0,88071.0,0.3608]
[1742845610935,0.1092,88085.0,88079.0,0.3608]
[1742845611132,0.11355377,88082.0,88080.0,0.1145]
[1742845611330,0.11355377,88082.0,88081.0,0.11196]
[1742845611645,0.2173,88090.0,88081.0,0.29196]
[1742845611842,0.21741118,88090.0,88081.0,0.40646]
[1742845612339,0.11353701,88087.0,88081.0,0.40646]
[1742845613938,0.11353701,88087.0,88082.0,0.113]
[1742845614244,0.21741118,88090.0,88082.0,0.113]
[1742845614245,1e-08,88090.0,88083.0,1.5]
[1742845614432,1e-08,88090.0,88089.0,0.3608]
[1742845614739,0.20146065,88099.0,88089.0,0.6108]
[1742845614936,0.20146065,88099.0,88098.0,0.3608]
[1742845615142,0.20146065,88099.0,88098.0,0.6308]
[1742845615844,0.1123,88110.0,88098.0,0.64397445]
[1742845616042,0.1123,88110.0,88099.0,0.33752]
[1742845616238,0.1135151,88103.0,88099.0,0.43752]
[1742845616744,0.2281151,88103.0,88099.0,0.43928]
[1742845617548,0.2281151,88103.0,88099.0,0.44028]
[1742845617739,0.0004,88136.0,88099.0,0.44028]
[1742845618043,0.2231,88118.0,88109.0,0.3608]
[1742845618247,0.11350608,88110.0,88109.0,0.45256]
[1742845618445,0.2231,88118.0,88109.0,0.56444]
[1742845618643,0.0004,88136.0,88110.0,0.11188]
[1742845618949,0.11349578,88117.0,88110.0,0.50254]
[1742845619146,0.1179,88118.0,88110.0,0.50254]
[1742845619743,0.1179,88118.0,88111.0,1.5]
[1742845619944,0.1179,88118.0,88111.0,1.73176]
[1742845620139,0.1103,88128.0,88111.0,1.73176]
[1742845620341,0.1179,88127.0,88111.0,0.23176]
[1742845620542,0.002,88118.0,88111.0,0.23176]
[1742845620943,0.1179,88117.0,88112.0,1.5]
[1742845621136,0.005,88118.0,88117.0,0.3608]
[1742845621340,0.005,88118.0,88117.0,0.65256]
[1742845622141,0.002,88118.0,88117.0,0.65256]
[1742845622642,0.1179,88126.0,88117.0,0.65256]
[1742845622840,0.002,88118.0,88117.0,0.65256]
[1742845623443,0.1111,88119.0,88117.0,0.65256]
[1742845623644,0.007,88118.0,88117.0,0.65256]
[1742845624558,0.004,88118.0,88117.0,0.65256]
[1742845626242,0.1103,88129.0,88117.0,0.65256]
[1742845626447,0.1118,88128.0,88127.0,0.3608]
[1742845626643,0.11348483,88128.0,88127.0,0.5744]
[1742845626847,0.37398003,88147.0,88127.0,0.5744]
[1742845627049,0.2204,88146.0,88128.0,0.1175]
[1742845627353,0.003,88129.0,88128.0,0.33926]
[1742845627753,0.003,88129.0,88128.0,0.4511]
[1742845629050,0.003,88129.0,88128.0,0.4521]
[1742845629647,0.2191,88134.0,88128.0,0.4521]
[1742845629851,0.1118,88134.0,88128.0,0.4551]
[1742845630054,0.1118,88134.0,88129.0,0.1186]
[1742845630352,0.1118,88134.0,88129.0,0.38036]
[1742845631160,0.1131,88146.0,88129.0,0.38036]
[1742845631361,0.2263,88145.0,88135.0,0.3608]
[1742845631552,0.2263,88145.0,88135.0,0.63256]
[1742845632559,0.2263,88145.0,88135.0,0.64102454]
[1742845632752,0.2263,88145.0,88135.0,2.14102454]
[1742845632953,0.2263,88145.0,88135.0,2.14202454]
[1742845634356,0.2263,88145.0,88136.0,0.2196]
[1742845634552,0.2263,88145.0,88137.0,0.1118]
[1742845634753,0.2263,88145.0,88137.0,0.37646437]
[1742845634948,0.1182,88145.0,88143.0,0.3608]
[1742845635258,0.001,88145.0,88144.0,0.2196]
[1742845635557,0.001,88145.0,88144.0,0.50136]
[1742845635955,0.001,88145.0,88144.0,0.61576]
[1742845636759,0.003,88145.0,88144.0,0.61576]
[1742845636955,0.002,88145.0,88144.0,0.61576]
[1742845637149,0.003,88145.0,88144.0,0.61576]
[1742845637653,0.002,88145.0,88144.0,0.61576]
[1742845637853,0.004,88145.0,88144.0,0.61576]
[1742845641555,0.1091,88151.0,88144.0,0.61576]
[1742845641864,0.1091,88151.0,88145.0,0.3608]
[1742845642172,0.1091,88151.0,88146.0,0.11176]
[1742845642358,0.1091,88151.0,88147.0,0.11176]
[1742845642666,0.1111,88151.0,88147.0,0.58812]
[1742845643482,0.1131,88151.0,88147.0,0.58812]
[1742845643675,0.1111,88151.0,88147.0,0.58812]
[1742845643981,0.01281601,88165.0,88147.0,0.58812]
[1742845644176,0.2316,88164.0,88161.0,0.3608]
[1742845644379,0.34504428,88164.0,88162.0,0.34346]
[1742845644574,0.34504428,88164.0,88162.0,0.41642]
[1742845644783,0.2316,88164.0,88162.0,0.41642]
[1742845646080,0.2366,88164.0,88162.0,0.41642]
[1742845646278,0.2406,88164.0,88162.0,0.41642]
[1742845647390,0.2366,88164.0,88162.0,0.41642]
[1742845647590,0.2406,88164.0,88162.0,0.30466]
[1742845648286,0.2406,88164.0,88163.0,0.116]
[1742845648490,0.2406,88164.0,88163.0,0.27776]
[1742845648688,0.2406,88164.0,88163.0,0.38946]
[1742845649282,0.2356,88164.0,88163.0,0.38946]
[1742845649482,0.2366,88164.0,88163.0,0.38946]
[1742845649791,0.2406,88164.0,88163.0,0.38946]
[1742845652286,0.2406,88164.0,88163.0,0.27346]
[1742845653084,0.3608,88206.0,88163.0,1.19636]
[1742845653284,0.3608,88198.0,88180.0,0.3608]
[1742845653491,0.00845153,88203.0,88180.0,0.3608]
[1742845653492,0.11342562,88184.0,88181.0,0.22402]
[1742845653688,0.11342562,88184.0,88181.0,0.32578]
[1742845653891,0.01266495,88193.0,88181.0,0.32578]
[1742845654192,0.3608,88206.0,88192.0,0.3608]
[1742845654396,0.3608,88206.0,88193.0,0.22402]
[1742845654397,0.11342562,88199.0,88193.0,0.22402]
[1742845654693,0.01290949,88201.0,88193.0,0.22586]
[1742845654993,0.11339539,88199.0,88193.0,0.22586]
[1742845655896,0.11339539,88199.0,88193.0,0.23086]
[1742845656288,0.11339539,88199.0,88194.0,0.116]
[1742845656491,0.11339539,88199.0,88194.0,0.11776]
[1742845656690,0.11339539,88199.0,88195.0,0.1161]
[1742845656889,0.11339539,88199.0,88195.0,0.11786]
[1742845657184,0.11339539,88199.0,88196.0,0.116]
[1742845657389,0.11339539,88199.0,88196.0,0.11776]
[1742845657593,0.11339539,88199.0,88197.0,0.1161]
[1742845657902,0.11339539,88199.0,88197.0,0.11794]
[1742845658200,0.11339539,88199.0,88198.0,0.116]
[1742845658396,0.11339539,88199.0,88198.0,0.11776]
[1742845659589,0.33239539,88199.0,88198.0,0.11776]
[1742845659796,0.33239539,88199.0,88198.0,0.12376]
[1742845661297,0.3608,88210.0,88198.0,0.23376]
[1742845661499,0.0004,88216.0,88209.0,0.3608]
[1742845661706,0.1176,88215.0,88214.0,0.3608]
[1742845661888,0.338,88215.0,88214.0,0.36256]
[1742845662202,0.45138061,88215.0,88214.0,0.36256]
[1742845662587,0.4079,88254.0,88214.0,0.63424]
[1742845662798,0.1112,88230.0,88215.0,0.2226]
[1742845663000,0.1092,88229.0,88216.0,0.11168]
[1742845663299,0.1092,88229.0,88228.0,0.3608]
[1742845663498,0.1092,88229.0,88228.0,0.36256]
[1742845663897,0.20186065,88248.0,88228.0,0.47256]
[1742845664090,0.01295386,88242.0,88240.0,0.3608]
[1742845664294,0.01295386,88242.0,88240.0,0.36256]
[1742845664704,0.28180884,88241.0,88240.0,0.36256]
[1742845665602,0.28480884,88241.0,88240.0,0.36256]
[1742845668506,0.11633435,88241.0,88240.0,0.36256]
[1742845668693,0.0004,88248.0,88240.0,0.36256]
[1742845668900,0.0004,88248.0,88247.0,0.3608]
[1742845669111,0.0004,88248.0,88247.0,0.47424]
[1742845669403,0.11372664,88248.0,88247.0,0.47424]
[1742845670700,0.11372664,88248.0,88247.0,0.57424]
[1742845672004,0.12250663,88248.0,88247.0,0.57424]
[1742845674898,0.12259788,88248.0,88247.0,0.57424]
[1742845675504,0.11381789,88248.0,88247.0,0.57424]
[1742845679013,0.1111,88261.0,88247.0,0.57424]
[1742845679211,0.1111,88261.0,88260.0,0.3608]
[1742845679514,0.1111,88261.0,88260.0,0.36256]
[1742845679711,0.22440931,88261.0,88260.0,0.36256]
[1742845683813,0.33769601,88261.0,88260.0,0.36256]
[1742845684012,0.37440931,88261.0,88252.0,0.00017001]
[1742845684216,0.3608,88258.0,88252.0,0.00141001]
[1742845684514,0.2193,88257.0,88252.0,0.00141001]
[1742845684815,0.33384611,88257.0,88256.0,0.3608]
[1742845685017,0.22254611,88257.0,88256.0,0.36204]
[1742845685313,0.11454611,88257.0,88256.0,0.36204]
[1742845685518,0.1133061,88257.0,88256.0,0.36204]
[1742845685716,0.11390611,88257.0,88256.0,0.36204]
[1742845686019,0.00060001,88257.0,88256.0,0.36204]
[1742845686206,0.11390611,88257.0,88256.0,0.36204]
[1742845686411,0.11390611,88257.0,88256.0,0.47364]
[1742845686608,0.11390611,88257.0,88256.0,0.36204]
[1742845686815,0.11390611,88257.0,88239.0,0.3608]
[1742845686816,0.52180611,88257.0,88239.0,0.3608]
[1742845687016,0.3608,88248.0,88239.0,0.36168]
[1742845687216,0.36168001,88248.0,88240.0,0.2242]
[1742845687415,0.36168001,88248.0,88240.0,0.22508]
[1742845687812,0.11332279,88247.0,88240.0,0.22508]
[1742845688021,0.1142028,88247.0,88240.0,0.22508]
[1742845689015,0.1142028,88247.0,88244.0,0.20290943]
[1742845689210,0.1142028,88247.0,88245.0,0.229]
[1742845689619,0.1142028,88247.0,88245.0,0.22988]
[1742845690119,0.2232,88246.0,88245.0,0.22988]
[1742845690321,0.22408001,88246.0,88245.0,0.22988]
[1742845690519,0.22408001,88246.0,88245.0,0.3998408]
[1742845690720,0.33739959,88246.0,88245.0,0.3998408]
[1742845694022,0.33739959,88246.0,88245.0,0.2876408]
[1742845694219,0.33739959,88246.0,88245.0,0.1708408]
[1742845694425,0.45070549,88246.0,88245.0,0.00088]
[1742845694628,0.1133139,88241.0,88240.0,0.1133127]
[1742845694823,0.11391391,88241.0,88240.0,0.1141927]
[1742845695027,0.00060001,88241.0,88240.0,0.1133127]
[1742845695232,0.11392023,88241.0,88240.0,0.1141927]
[1742845695426,0.33992023,88241.0,88240.0,0.1141927]
[1742845695626,0.33992023,88241.0,88240.0,0.1133127]
[1742845695827,0.33992023,88241.0,88240.0,0.1143127]
[1742845696636,0.33992023,88241.0,88240.0,0.1151927]
[1742845697022,0.47430062,88241.0,88240.0,0.1151927]
[1742845697222,0.47430062,88241.0,88235.0,0.00017001]
[1742845697223,0.0566578,88239.0,88235.0,0.00017001]
[1742845697431,0.4741188,88236.0,88235.0,0.00017001]
[1742845697626,0.4741188,88236.0,88235.0,0.11349011]
[1742845697627,0.47471881,88236.0,88235.0,0.11349011]
[1742845697830,0.58804545,88236.0,88235.0,0.11349011]
[1742845698830,0.47472665,88236.0,88235.0,0.11349011]
[1742845699030,0.47472665,88236.0,88235.0,0.11409011]
[1742845699231,0.58804545,88236.0,88235.0,0.00077001]
[1742845699526,0.81474545,88236.0,88235.0,0.11349011]
[1742845699923,0.81474545,88236.0,88235.0,0.11409011]
[1742845700729,0.81474545,88236.0,88235.0,0.11349011]
[1742845700930,0.81474545,88236.0,88235.0,0.11409011]
[1742845702125,0.81474545,88236.0,88235.0,0.00077001]
[1742845702331,0.81474545,88236.0,88235.0,0.00017001]
[1742845702531,0.81474545,88236.0,88235.0,0.11349011]
[1742845702740,0.81474545,88236.0,88235.0,0.00017001]
[1742845703439,0.81474545,88236.0,88235.0,0.00077001]
[1742845703639,0.81474545,88236.0,88235.0,0.00017001]
[1742845703830,0.81474545,88236.0,88235.0,0.00077001]
[1742845704230,0.81474545,88236.0,88235.0,0.11409011]
[1742845704430,0.81474545,88236.0,88235.0,0.00077001]
[1742845704826,0.81474545,88236.0,88235.0,0.00017001]
[1742845705040,0.81474545,88236.0,88235.0,0.11349011]
[1742845705336,0.81474545,88236.0,88235.0,0.11409011]
[1742845705531,0.81474545,88236.0,88235.0,0.00077001]
[1742845705732,0.81474545,88236.0,88235.0,0.11409011]
[1742845705931,0.70142665,88236.0,88235.0,0.11409011]
[1742845706134,0.70142665,88236.0,88235.0,0.33199011]
[1742845707540,0.70142665,88236.0,88235.0,0.21867001]
[1742845707733,0.70142665,88236.0,88235.0,0.10817001]
[1742845708138,0.81474545,88236.0,88235.0,0.10817001]
[1742845708344,0.81306665,88236.0,88235.0,0.22089011]
[1742845708539,0.81406665,88236.0,88235.0,0.22157011]
[1742845708844,0.81406665,88236.0,88235.0,0.33227011]
[1742845709244,0.81306665,88236.0,88235.0,0.33227011]
[1742845709446,0.81406665,88236.0,88235.0,0.33227011]
[1742845709645,0.92738545,88236.0,88235.0,0.21895001]
[1742845709947,0.92738545,88236.0,88235.0,0.10825001]
[1742845710142,0.0566659,88226.0,88207.0,0.00889475]
[1742845710445,0.4741342,88224.0,88222.0,0.0566683]
[1742845710640,0.4749342,88224.0,88223.0,0.33738889]
[1742845710837,0.7061342,88224.0,88223.0,0.33798889]
[1742845711033,0.8177742,88224.0,88223.0,0.33798889]
[1742845711539,0.93112139,88224.0,88223.0,0.33798889]
[1742845711744,0.93112139,88224.0,88223.0,0.33898889]
[1742845711938,0.93974346,88224.0,88223.0,0.22765339]
[1742845712132,0.93974346,88224.0,88223.0,0.11455339]
[1742845712548,0.93974346,88224.0,88223.0,0.11519339]
[1742845712749,0.93974346,88224.0,88223.0,0.00409339]
[1742845713046,0.93974346,88224.0,88223.0,0.00345339]
[1742845713241,0.93974346,88224.0,88223.0,0.00405339]
[1742845713438,1.34764346,88224.0,88223.0,0.00405339]
[1742845713837,1.34764346,88224.0,88223.0,0.00345339]
[1742845714041,1.34764346,88224.0,88223.0,0.00405339]
[1742845714249,1.34764346,88224.0,88223.0,0.00345339]
[1742845714547,1.34764346,88224.0,88223.0,0.00405339]
[1742845715540,1.4490415,88224.0,88223.0,0.00345339]
[1742845715745,1.4490415,88224.0,88223.0,0.00409339]
[1742845715947,1.4490415,88224.0,88223.0,0.11435339]
[1742845716150,1.4490415,88224.0,88223.0,0.22885339]
[1742845716835,1.4490415,88224.0,88223.0,0.22945339]
[1742845718347,1.4490415,88224.0,88223.0,0.22885339]
[1742845718543,1.4490415,88224.0,88223.0,0.22945339]
[1742845719444,1.34764346,88224.0,88223.0,0.22945339]
[1742845720750,1.34764346,88224.0,88223.0,0.22885339]
[1742845722267,1.00310926,88224.0,88223.0,0.22945339]
[1742845722454,1.11644346,88224.0,88223.0,0.34218889]
[1742845722661,1.00310926,88224.0,88223.0,0.34294889]
[1742845723056,1.11644346,88224.0,88223.0,0.34294889]
[1742845723264,1.22884346,88224.0,88223.0,0.22961339]
[1742845723664,1.34694346,88224.0,88223.0,0.22961339]
[1742845724162,1.34694346,88224.0,88223.0,0.22885339]
[1742845724467,1.34694346,88224.0,88223.0,0.34294889]
[1742845724861,1.34694346,88224.0,88223.0,0.34218889]
[1742845725166,1.34694346,88224.0,88223.0,0.22885339]
[1742845726370,1.34694346,88224.0,88223.0,0.22953339]
[1742845728073,1.34694346,88224.0,88223.0,0.22885339]
[1742845730160,0.98614346,88224.0,88223.0,0.22885339]
[1742845730371,1.70774346,88224.0,88223.0,0.22945339]
[1742845730561,1.70774346,88224.0,88223.0,0.22885339]
[1742845731256,1.93132296,88224.0,88223.0,0.22885339]
[1742845734872,1.70774346,88224.0,88223.0,0.22885339]
[1742845740969,1.71697231,88224.0,88223.0,0.22885339]
[1742845741477,1.37313811,88224.0,88223.0,0.22885339]
[1742845741675,1.37313811,88224.0,88223.0,0.34294889]
[1742845741881,1.5415773,88224.0,88223.0,0.22961339]
[1742845742077,1.5415773,88224.0,88223.0,0.22945339]
[1742845742287,1.5415773,88224.0,88223.0,0.22885339]
[1742845744271,1.6559773,88224.0,88223.0,0.22885339]
[1742845744474,1.7631773,88224.0,88223.0,0.22885339]
[1742845745471,1.96463795,88224.0,88223.0,0.22885339]
[1742845748482,1.85743795,88224.0,88223.0,0.22885339]
[1742845748678,1.74303795,88224.0,88223.0,0.22945339]
[1742845749076,1.74303795,88224.0,88223.0,0.1934241]
[1742845749277,1.7707784,88224.0,88223.0,0.1934241]
[1742845749483,1.7944453,88224.0,88223.0,0.1934241]
[1742845749683,1.6828053,88224.0,88223.0,0.1934241]
[1742845749884,1.7944453,88224.0,88223.0,0.1934241]
[1742845750083,1.59298465,88224.0,88223.0,0.1934241]
[1742845750476,1.5652442,88224.0,88223.0,0.1940241]
[1742845750676,1.5652442,88224.0,88223.0,0.1934241]
[1742845751286,1.45191,88224.0,88223.0,0.1934241]
[1742845751588,1.59241965,88224.0,88223.0,0.1934241]
[1742845752184,1.45541855,88224.0,88223.0,0.1934241]
[1742845752379,1.56875275,88224.0,88223.0,0.1934241]
[1742845752586,1.5415773,88224.0,88223.0,0.1934241]
[1742845753081,1.4282431,88224.0,88223.0,0.1934241]
[1742845753282,1.4282431,88224.0,88223.0,0.1940241]
[1742845753583,1.5415773,88224.0,88223.0,0.1934241]
[1742845754487,1.66694549,88224.0,88223.0,0.1934241]
[1742845756488,1.55361129,88224.0,88223.0,0.3067596]